[Event "Early-Titled-Tuesday-Blitz-September-26-2023"]
[Site "Chess.com"]
[Date "2023.09.26"]
[Round "2"]
[White "whitemirrorninja"]
[Black "atigerman"]
[Result "0-1"]
[WhiteElo "2480"]
[BlackElo "2705"]
[TimeControl "180+1"]
[EndTime "8:17:44 PDT"]
[Termination "atigerman won by resignation"]

1. d4 {[%clk 0:03:00.9]} 1... d5 {[%clk 0:03:00.7]} 2. Nc3 {[%clk 0:03:00.8]}
2... c6 {[%clk 0:03:00.4]} 3. Bf4 {[%clk 0:03:00.3]} 3... Bf5 {[%clk 0:03:00.2]}
4. e3 {[%clk 0:03:00.2]} 4... Nd7 {[%clk 0:03:00.7]} 5. g4 {[%clk 0:02:55]} 5...
Bg6 {[%clk 0:02:59.8]} 6. Nf3 {[%clk 0:02:50.6]} 6... e6 {[%clk 0:02:58.5]} 7.
Ne5 {[%clk 0:02:41.1]} 7... Nxe5 {[%clk 0:02:57.8]} 8. Bxe5 {[%clk 0:02:42]}
8... Nf6 {[%clk 0:02:50.5]} 9. h4 {[%clk 0:02:34.4]} 9... h5 {[%clk 0:02:49.6]}
10. g5 {[%clk 0:02:32.4]} 10... Nd7 {[%clk 0:02:48.5]} 11. Bg3 {[%clk
0:02:31.6]} 11... a6 {[%clk 0:02:47.7]} 12. Bd3 {[%clk 0:02:30.5]} 12... Bxd3
{[%clk 0:02:46.8]} 13. Qxd3 {[%clk 0:02:31.4]} 13... g6 {[%clk 0:02:47.1]} 14.
O-O-O {[%clk 0:02:30.8]} 14... Bg7 {[%clk 0:02:46.1]} 15. e4 {[%clk 0:02:30.5]}
15... O-O {[%clk 0:02:44.2]} 16. Bd6 {[%clk 0:02:04.1]} 16... Re8 {[%clk
0:02:43.2]} 17. e5 {[%clk 0:02:04.7]} 17... c5 {[%clk 0:02:41.8]} 18. dxc5
{[%clk 0:01:53]} 18... Nxe5 {[%clk 0:02:40.9]} 19. Bxe5 {[%clk 0:01:30.8]} 19...
Bxe5 {[%clk 0:02:41.6]} 20. Na4 {[%clk 0:01:28.9]} 20... Qa5 {[%clk 0:02:36.8]}
21. Qb3 {[%clk 0:01:28.3]} 21... Rac8 {[%clk 0:02:35.7]} 22. c3 {[%clk
0:01:20.8]} 22... b5 {[%clk 0:02:32.5]} 23. Nb6 {[%clk 0:01:03]} 23... Rc7
{[%clk 0:01:53.3]} 24. a3 {[%clk 0:00:56.5]} 24... d4 {[%clk 0:01:39.5]} 25. Qb4
{[%clk 0:00:35.3]} 25... Qxb4 {[%clk 0:01:39]} 26. cxb4 {[%clk 0:00:34.7]} 26...
Rd8 {[%clk 0:01:39.1]} 27. Kc2 {[%clk 0:00:32.5]} 27... Rc6 {[%clk 0:01:38.7]}
28. Kd3 {[%clk 0:00:32.7]} 28... Bc7 {[%clk 0:01:37.9]} 29. Rc1 {[%clk 0:00:29]}
29... Bxb6 {[%clk 0:01:28.1]} 30. cxb6 {[%clk 0:00:29]} 30... Rxb6 {[%clk
0:01:28.8]} 31. Rc7 {[%clk 0:00:26.7]} 31... Rbd6 {[%clk 0:01:29.3]} 32. Rhc1
{[%clk 0:00:26]} 32... Rd5 {[%clk 0:01:29.1]} 33. R1c5 {[%clk 0:00:23.9]} 33...
Kf8 {[%clk 0:01:25.2]} 34. Rxd5 {[%clk 0:00:18.1]} 34... Rxd5 {[%clk 0:01:25.9]}
35. Rc6 {[%clk 0:00:16.3]} 35... e5 {[%clk 0:01:21.9]} 36. Rxa6 {[%clk
0:00:16.3]} 36... e4+ {[%clk 0:01:21.6]} 37. Kxe4 {[%clk 0:00:16.1]} 37... d3
{[%clk 0:01:20.9]} 38. Ra8+ {[%clk 0:00:11.6]} 38... Ke7 {[%clk 0:01:07.9]} 39.
Kxd5 {[%clk 0:00:10]} 39... d2 {[%clk 0:01:07.2]} 40. Ra7+ {[%clk 0:00:08.3]}
40... Kf8 {[%clk 0:01:07]} 41. Kc5 {[%clk 0:00:06.7]} 41... d1=Q {[%clk
0:01:06.3]} 42. Kxb5 {[%clk 0:00:07.4]} 42... Qe2+ {[%clk 0:01:04.3]} 43. Ka5
{[%clk 0:00:04.2]} 43... Qxf2 {[%clk 0:01:01.4]} 44. Ra8+ {[%clk 0:00:03.6]}
44... Kg7 {[%clk 0:01:01.4]} 45. b5 {[%clk 0:00:03.4]} 45... Qg2 {[%clk
0:00:59.5]} 46. Ra7 {[%clk 0:00:02.9]} 46... Qd5 {[%clk 0:00:55.8]} 47. b4
{[%clk 0:00:02.5]} 47... Qe5 {[%clk 0:00:51.3]} 48. Ka6 {[%clk 0:00:02.9]} 48...
Qe2 {[%clk 0:00:50.2]} 49. a4 {[%clk 0:00:02.7]} 49... Qc4 {[%clk 0:00:49]} 50.
Rc7 {[%clk 0:00:03.1]} 50... Qxc7 {[%clk 0:00:48.5]} 51. b6 {[%clk 0:00:03.8]}
51... Qc4+ {[%clk 0:00:48.7]} 52. Ka7 {[%clk 0:00:03.5]} 52... Qxb4 {[%clk
0:00:48.4]} 53. b7 {[%clk 0:00:03.9]} 53... Qxa4+ {[%clk 0:00:48.8]} 54. Kb6
{[%clk 0:00:04.7]} 54... Qxh4 {[%clk 0:00:48.9]} 55. b8=Q {[%clk 0:00:04.5]}
55... Qb4+ {[%clk 0:00:49.2]} 56. Kc7 {[%clk 0:00:05.1]} 56... Qf4+ {[%clk
0:00:48.8]} 57. Kc8 {[%clk 0:00:04.9]} 57... Qxb8+ {[%clk 0:00:49.5]} 58. Kxb8
{[%clk 0:00:05.8]} 58... h4 {[%clk 0:00:50.2]} 0-1

[Event "Early-Titled-Tuesday-Blitz-September-26-2023"]
[Site "Chess.com"]
[Date "2023.09.26"]
[Round "2"]
[White "Yurasova_Daria"]
[Black "itsdsyr"]
[Result "1-0"]
[WhiteElo "2507"]
[BlackElo "2288"]
[TimeControl "180+1"]
[EndTime "8:17:44 PDT"]
[Termination "Yurasova_Daria won on time"]

1. d4 {[%clk 0:03:00.9]} 1... Nf6 {[%clk 0:02:59.9]} 2. Bg5 {[%clk 0:02:58.4]}
2... Ne4 {[%clk 0:02:59.3]} 3. Bf4 {[%clk 0:02:58.1]} 3... d5 {[%clk 0:02:59.2]}
4. e3 {[%clk 0:02:58.4]} 4... c5 {[%clk 0:02:58.4]} 5. Nf3 {[%clk 0:02:58.1]}
5... Nc6 {[%clk 0:02:57.6]} 6. Nbd2 {[%clk 0:02:57]} 6... Bg4 {[%clk 0:02:56.6]}
7. Be2 {[%clk 0:02:53.5]} 7... cxd4 {[%clk 0:02:44.4]} 8. exd4 {[%clk
0:02:53.1]} 8... Qb6 {[%clk 0:02:35.2]} 9. O-O {[%clk 0:02:53]} 9... Nxd2 {[%clk
0:02:30.7]} 10. Qxd2 {[%clk 0:02:52.7]} 10... e6 {[%clk 0:02:26.8]} 11. c3
{[%clk 0:02:52.1]} 11... Be7 {[%clk 0:02:25.6]} 12. h3 {[%clk 0:02:49.6]} 12...
Bh5 {[%clk 0:02:24.9]} 13. a4 {[%clk 0:02:50]} 13... a5 {[%clk 0:02:22.7]} 14.
Ne5 {[%clk 0:02:45.5]} 14... Bg6 {[%clk 0:02:02.5]} 15. Bb5 {[%clk 0:02:42.1]}
15... O-O {[%clk 0:02:01.1]} 16. Nd7 {[%clk 0:02:42.1]} 16... Qd8 {[%clk
0:01:56.7]} 17. Nxf8 {[%clk 0:02:39.9]} 17... Qxf8 {[%clk 0:01:57.5]} 18. Rfe1
{[%clk 0:02:34.7]} 18... Na7 {[%clk 0:01:32.1]} 19. Bd3 {[%clk 0:02:30.2]} 19...
Nc8 {[%clk 0:01:31.9]} 20. Bxg6 {[%clk 0:02:29.7]} 20... hxg6 {[%clk 0:01:31]}
21. Bg5 {[%clk 0:02:29.3]} 21... Nd6 {[%clk 0:01:22.9]} 22. Bxe7 {[%clk
0:02:27.5]} 22... Qxe7 {[%clk 0:01:23.8]} 23. Qd3 {[%clk 0:02:22.1]} 23... Nf5
{[%clk 0:01:19.8]} 24. Kh1 {[%clk 0:02:03.3]} 24... Qg5 {[%clk 0:01:09.5]} 25.
Qf3 {[%clk 0:02:00.5]} 25... Nd6 {[%clk 0:01:07.9]} 26. Qg3 {[%clk 0:01:52.3]}
26... Qd8 {[%clk 0:00:39.3]} 27. b4 {[%clk 0:01:43.5]} 27... Ne4 {[%clk
0:00:27.8]} 28. Qe3 {[%clk 0:01:43]} 28... Rc8 {[%clk 0:00:26.1]} 29. Rec1
{[%clk 0:01:41.9]} 29... Rc4 {[%clk 0:00:25.3]} 30. bxa5 {[%clk 0:01:22.1]}
30... Qxa5 {[%clk 0:00:23.9]} 31. Rab1 {[%clk 0:01:19.8]} 31... b6 {[%clk
0:00:21.2]} 32. Rb5 {[%clk 0:01:11.4]} 32... Qxa4 {[%clk 0:00:20.8]} 33. Rxb6
{[%clk 0:01:11.1]} 33... Qa3 {[%clk 0:00:20.1]} 34. Qf4 {[%clk 0:01:04.2]} 34...
Nxf2+ {[%clk 0:00:13.3]} 35. Kh2 {[%clk 0:00:58.2]} 35... Rc8 {[%clk 0:00:11.9]}
36. Rf1 {[%clk 0:00:47.2]} 36... Qxc3 {[%clk 0:00:04.4]} 37. Qxf2 {[%clk
0:00:45.6]} 37... Rf8 {[%clk 0:00:05.3]} 38. Qb2 {[%clk 0:00:39.8]} 38... Qc7+
{[%clk 0:00:03.8]} 39. Kh1 {[%clk 0:00:40.2]} 39... Qg3 {[%clk 0:00:01.8]} 40.
Rb7 {[%clk 0:00:37.7]} 1-0

[Event "Early-Titled-Tuesday-Blitz-September-26-2023"]
[Site "Chess.com"]
[Date "2023.09.26"]
[Round "2"]
[White "m_ezat"]
[Black "DonkyDonkyDonkey"]
[Result "0-1"]
[WhiteElo "2537"]
[BlackElo "2728"]
[TimeControl "180+1"]
[EndTime "8:17:46 PDT"]
[Termination "DonkyDonkyDonkey won by resignation"]

1. d4 {[%clk 0:03:00.9]} 1... Nf6 {[%clk 0:03:00]} 2. c4 {[%clk 0:03:00.2]} 2...
g6 {[%clk 0:02:57.2]} 3. Nc3 {[%clk 0:02:59.6]} 3... d5 {[%clk 0:02:57.5]} 4.
Nf3 {[%clk 0:02:57.6]} 4... Bg7 {[%clk 0:02:57.6]} 5. Bf4 {[%clk 0:02:56.4]}
5... O-O {[%clk 0:02:57.6]} 6. e3 {[%clk 0:02:52.2]} 6... c5 {[%clk 0:02:36.9]}
7. dxc5 {[%clk 0:02:39]} 7... Ne4 {[%clk 0:02:36.7]} 8. Be5 {[%clk 0:02:11.3]}
8... Nxc3 {[%clk 0:02:29.7]} 9. Bxc3 {[%clk 0:02:05.4]} 9... Bxc3+ {[%clk
0:02:29]} 10. bxc3 {[%clk 0:02:05.2]} 10... Qa5 {[%clk 0:02:29.8]} 11. Qd2
{[%clk 0:02:03.2]} 11... dxc4 {[%clk 0:02:24.9]} 12. Bxc4 {[%clk 0:02:00.1]}
12... Qxc5 {[%clk 0:02:24.8]} 13. Qd4 {[%clk 0:02:00.2]} 13... Qc7 {[%clk
0:02:20.2]} 14. O-O {[%clk 0:01:57.6]} 14... Nc6 {[%clk 0:02:20]} 15. Qh4 {[%clk
0:01:57.1]} 15... Kg7 {[%clk 0:02:03.9]} 16. Bd5 {[%clk 0:01:49.5]} 16... h6
{[%clk 0:01:49]} 17. Rab1 {[%clk 0:01:47]} 17... Rd8 {[%clk 0:01:43.7]} 18. Bxc6
{[%clk 0:01:40.9]} 18... bxc6 {[%clk 0:01:44.6]} 19. Rfd1 {[%clk 0:01:38.4]}
19... Bf5 {[%clk 0:01:42.7]} 20. Rbc1 {[%clk 0:01:32.3]} 20... c5 {[%clk
0:01:36.8]} 21. h3 {[%clk 0:01:28.5]} 21... Rab8 {[%clk 0:01:30.7]} 22. Qa4
{[%clk 0:00:45.4]} 22... Rxd1+ {[%clk 0:01:10.8]} 23. Rxd1 {[%clk 0:00:44.9]}
23... Rb2 {[%clk 0:01:09.8]} 24. Qa3 {[%clk 0:00:37.5]} 24... Rc2 {[%clk
0:01:03.6]} 25. Rd5 {[%clk 0:00:33.3]} 25... Be4 {[%clk 0:00:47.6]} 26. Rxc5
{[%clk 0:00:32.8]} 26... Qd6 {[%clk 0:00:47.2]} 27. Nd4 {[%clk 0:00:32.5]} 27...
Rd2 {[%clk 0:00:36.5]} 28. Qc1 {[%clk 0:00:29.4]} 28... Rxa2 {[%clk 0:00:36.2]}
29. Rb5 {[%clk 0:00:28.4]} 29... e5 {[%clk 0:00:34.7]} 30. Nb3 {[%clk
0:00:20.4]} 30... Rc2 {[%clk 0:00:22.5]} 31. Qe1 {[%clk 0:00:19.4]} 31... Bd3
{[%clk 0:00:20.9]} 32. Rb4 {[%clk 0:00:19.3]} 32... Qc6 {[%clk 0:00:18.7]} 33.
Na5 {[%clk 0:00:15]} 33... Qc7 {[%clk 0:00:18.3]} 34. c4 {[%clk 0:00:13.1]}
34... Qxa5 {[%clk 0:00:17.7]} 35. e4 {[%clk 0:00:11.2]} 35... Rb2 {[%clk
0:00:17.4]} 36. Qc3 {[%clk 0:00:06.9]} 36... Rxb4 {[%clk 0:00:16]} 37. Kh2
{[%clk 0:00:05.8]} 37... Qc5 {[%clk 0:00:15.9]} 38. Qxd3 {[%clk 0:00:05.6]}
38... Rxc4 {[%clk 0:00:16.2]} 39. Qf3 {[%clk 0:00:06]} 39... Qd4 {[%clk
0:00:16]} 40. Qa3 {[%clk 0:00:06.5]} 40... Qxe4 {[%clk 0:00:16.3]} 0-1

[Event "Early-Titled-Tuesday-Blitz-September-26-2023"]
[Site "Chess.com"]
[Date "2023.09.26"]
[Round "2"]
[White "zimmm36"]
[Black "SargissyanSargis"]
[Result "1/2-1/2"]
[WhiteElo "2674"]
[BlackElo "2421"]
[TimeControl "180+1"]
[EndTime "8:17:46 PDT"]
[Termination "Game drawn - insufficient material"]

1. e4 {[%clk 0:03:00.1]} 1... e5 {[%clk 0:02:58.8]} 2. Nf3 {[%clk 0:02:59.5]}
2... Nc6 {[%clk 0:02:59.4]} 3. Bb5 {[%clk 0:03:00.1]} 3... a6 {[%clk 0:02:59.3]}
4. Ba4 {[%clk 0:03:00.7]} 4... Nf6 {[%clk 0:02:59.5]} 5. O-O {[%clk 0:03:00.8]}
5... Be7 {[%clk 0:02:59.6]} 6. Re1 {[%clk 0:03:00.7]} 6... b5 {[%clk 0:03:00.3]}
7. Bb3 {[%clk 0:03:01.3]} 7... d6 {[%clk 0:03:01.1]} 8. h3 {[%clk 0:02:56.7]}
8... O-O {[%clk 0:03:01.1]} 9. c3 {[%clk 0:02:57.1]} 9... Bb7 {[%clk 0:03:00.7]}
10. d4 {[%clk 0:02:56.9]} 10... Re8 {[%clk 0:03:01.6]} 11. Ng5 {[%clk
0:02:55.6]} 11... Rf8 {[%clk 0:03:01.5]} 12. Nf3 {[%clk 0:02:56.3]} 12... Re8
{[%clk 0:03:01.8]} 13. Ng5 {[%clk 0:02:54.3]} 13... Rf8 {[%clk 0:03:02.1]} 14.
f4 {[%clk 0:02:55.1]} 14... h6 {[%clk 0:01:52.5]} 15. Nf3 {[%clk 0:02:54.1]}
15... exf4 {[%clk 0:01:52.3]} 16. Bxf4 {[%clk 0:02:55]} 16... d5 {[%clk
0:01:50.4]} 17. e5 {[%clk 0:02:55.1]} 17... Ne4 {[%clk 0:01:50.2]} 18. Nbd2
{[%clk 0:02:55.1]} 18... f5 {[%clk 0:01:37.9]} 19. exf6 {[%clk 0:02:55]} 19...
Nxf6 {[%clk 0:01:37.5]} 20. Bc2 {[%clk 0:02:54.6]} 20... Bd6 {[%clk 0:01:31.5]}
21. Ne5 {[%clk 0:02:50.6]} 21... Nxe5 {[%clk 0:01:24.2]} 22. Bxe5 {[%clk
0:02:45.5]} 22... Bxe5 {[%clk 0:01:21]} 23. Rxe5 {[%clk 0:02:46.4]} 23... Qd6
{[%clk 0:01:12.5]} 24. Qf3 {[%clk 0:02:42.8]} 24... Ne4 {[%clk 0:01:07.7]} 25.
Qe3 {[%clk 0:02:41.7]} 25... Rae8 {[%clk 0:01:00.7]} 26. Nxe4 {[%clk 0:02:40.4]}
26... dxe4 {[%clk 0:01:00]} 27. Rxe8 {[%clk 0:02:36.7]} 27... Rxe8 {[%clk
0:00:59.8]} 28. Rf1 {[%clk 0:02:37.6]} 28... Bd5 {[%clk 0:00:52.6]} 29. Bb3
{[%clk 0:02:35.8]} 29... Qe6 {[%clk 0:00:43.5]} 30. Bxd5 {[%clk 0:02:26.9]}
30... Qxd5 {[%clk 0:00:44.1]} 31. b3 {[%clk 0:02:27.6]} 31... a5 {[%clk
0:00:36.8]} 32. g4 {[%clk 0:02:22]} 32... a4 {[%clk 0:00:36.7]} 33. Rf5 {[%clk
0:02:21.7]} 33... Qd7 {[%clk 0:00:24.8]} 34. Kg2 {[%clk 0:02:08.6]} 34... axb3
{[%clk 0:00:24.7]} 35. axb3 {[%clk 0:02:09.5]} 35... c6 {[%clk 0:00:12.5]} 36.
c4 {[%clk 0:02:04.6]} 36... bxc4 {[%clk 0:00:12.2]} 37. bxc4 {[%clk 0:02:05.5]}
37... Qd6 {[%clk 0:00:12.2]} 38. c5 {[%clk 0:01:56.3]} 38... Qd7 {[%clk
0:00:11.4]} 39. Kg3 {[%clk 0:01:54.5]} 39... Rd8 {[%clk 0:00:11]} 40. Qxe4
{[%clk 0:01:52.8]} 40... Qxd4 {[%clk 0:00:10.7]} 41. Qxd4 {[%clk 0:01:43.6]}
41... Rxd4 {[%clk 0:00:10.1]} 42. h4 {[%clk 0:01:44.5]} 42... Rc4 {[%clk
0:00:09.6]} 43. h5 {[%clk 0:01:44.7]} 43... Kh7 {[%clk 0:00:09]} 44. g5 {[%clk
0:01:41.6]} 44... hxg5 {[%clk 0:00:08.8]} 45. Rxg5 {[%clk 0:01:42.5]} 45... Kh6
{[%clk 0:00:08.9]} 46. Re5 {[%clk 0:01:38.1]} 46... g6 {[%clk 0:00:08.4]} 47.
hxg6 {[%clk 0:01:30.8]} 47... Kxg6 {[%clk 0:00:09.3]} 48. Re6+ {[%clk
0:01:31.6]} 48... Kf5 {[%clk 0:00:09.6]} 49. Rxc6 {[%clk 0:01:32.5]} 49... Ke5
{[%clk 0:00:10.3]} 50. Rc8 {[%clk 0:01:32.2]} 50... Kd5 {[%clk 0:00:10.8]} 51.
Kf3 {[%clk 0:01:32.5]} 51... Rxc5 {[%clk 0:00:11.1]} 52. Rh8 {[%clk 0:01:32.2]}
52... Rc3+ {[%clk 0:00:11.2]} 53. Kf4 {[%clk 0:01:32.3]} 53... Rc4+ {[%clk
0:00:11.7]} 54. Kf5 {[%clk 0:01:32.5]} 54... Rc6 {[%clk 0:00:11.5]} 55. Rd8+
{[%clk 0:01:32.5]} 55... Rd6 {[%clk 0:00:11.9]} 56. Ra8 {[%clk 0:01:33]} 56...
Kc6 {[%clk 0:00:12.1]} 57. Ke5 {[%clk 0:01:32.8]} 57... Rd2 {[%clk 0:00:12.2]}
58. Rc8+ {[%clk 0:01:32.2]} 58... Kb7 {[%clk 0:00:12]} 59. Rc3 {[%clk
0:01:33.1]} 59... Kb6 {[%clk 0:00:11.3]} 60. Ke4 {[%clk 0:01:32.8]} 60... Kb7
{[%clk 0:00:11.5]} 61. Rb3+ {[%clk 0:01:33.1]} 61... Kc6 {[%clk 0:00:11.8]} 62.
Rb1 {[%clk 0:01:34]} 62... Kc7 {[%clk 0:00:11.8]} 63. Rb5 {[%clk 0:01:33.9]}
63... Kc6 {[%clk 0:00:12]} 64. Rh5 {[%clk 0:01:34.8]} 64... Kc7 {[%clk
0:00:12.3]} 65. Rh6 {[%clk 0:01:35.3]} 65... Kd7 {[%clk 0:00:11.7]} 66. Ke5
{[%clk 0:01:35.7]} 66... Kc7 {[%clk 0:00:12]} 67. Rh7+ {[%clk 0:01:35.7]} 67...
Kc6 {[%clk 0:00:12.2]} 68. Rh8 {[%clk 0:01:36]} 68... Kc7 {[%clk 0:00:12.5]} 69.
Rh4 {[%clk 0:01:35.4]} 69... Kc6 {[%clk 0:00:12.3]} 70. Rc4+ {[%clk 0:01:35.9]}
70... Kd7 {[%clk 0:00:12.5]} 71. Ra4 {[%clk 0:01:36.1]} 71... Kc6 {[%clk
0:00:12.7]} 72. Ra3 {[%clk 0:01:35.4]} 72... Kc7 {[%clk 0:00:13]} 73. Ke6 {[%clk
0:01:35.6]} 73... Kb6 {[%clk 0:00:12.3]} 74. Rg3 {[%clk 0:01:34.6]} 74... Kc6
{[%clk 0:00:12.5]} 75. Rg8 {[%clk 0:01:34.8]} 75... Kb7 {[%clk 0:00:12.7]} 76.
Rg7+ {[%clk 0:01:34.7]} 76... Kc6 {[%clk 0:00:13.1]} 77. Rg1 {[%clk 0:01:34.4]}
77... Kb7 {[%clk 0:00:13.4]} 78. Rc1 {[%clk 0:01:34.7]} 78... Kb6 {[%clk
0:00:13.7]} 79. Rc4 {[%clk 0:01:34.9]} 79... Kb7 {[%clk 0:00:14.1]} 80. Rc5
{[%clk 0:01:35.5]} 80... Kb6 {[%clk 0:00:14.6]} 81. Rc3 {[%clk 0:01:36.1]} 81...
Kb7 {[%clk 0:00:15.1]} 82. Rc5 {[%clk 0:01:35.2]} 82... Kb6 {[%clk 0:00:15.6]}
83. Rd5 {[%clk 0:01:35.9]} 83... Rxd5 {[%clk 0:00:14.3]} 84. Kxd5 {[%clk
0:01:36.8]} 1/2-1/2

[Event "Early-Titled-Tuesday-Blitz-September-26-2023"]
[Site "Chess.com"]
[Date "2023.09.26"]
[Round "2"]
[White "RobertoJBM"]
[Black "a-z30"]
[Result "1/2-1/2"]
[WhiteElo "2840"]
[BlackElo "2530"]
[TimeControl "180+1"]
[EndTime "8:17:46 PDT"]
[Termination "Game drawn by repetition"]

1. d4 {[%clk 0:03:00.9]} 1... d6 {[%clk 0:02:59.5]} 2. e4 {[%clk 0:03:00.4]}
2... Nf6 {[%clk 0:03:00.4]} 3. Nc3 {[%clk 0:03:00.2]} 3... g6 {[%clk 0:03:01]}
4. Be3 {[%clk 0:02:58.2]} 4... Bg7 {[%clk 0:03:01.2]} 5. Qd2 {[%clk 0:02:57.8]}
5... O-O {[%clk 0:03:01.9]} 6. Bh6 {[%clk 0:02:57.8]} 6... c5 {[%clk 0:03:01.8]}
7. Bxg7 {[%clk 0:02:57.2]} 7... Kxg7 {[%clk 0:03:01.4]} 8. Nge2 {[%clk
0:02:54.9]} 8... cxd4 {[%clk 0:03:01.1]} 9. Nxd4 {[%clk 0:02:54.6]} 9... Nc6
{[%clk 0:03:01.8]} 10. O-O-O {[%clk 0:02:53.8]} 10... Nxd4 {[%clk 0:03:01.5]}
11. Qxd4 {[%clk 0:02:53.6]} 11... Be6 {[%clk 0:03:02.3]} 12. Bc4 {[%clk
0:02:51.4]} 12... Bxc4 {[%clk 0:02:50.5]} 13. Qxc4 {[%clk 0:02:52.3]} 13... Qa5
{[%clk 0:02:49.8]} 14. Kb1 {[%clk 0:02:47.3]} 14... Rfc8 {[%clk 0:02:48.6]} 15.
Qd4 {[%clk 0:02:46.1]} 15... Rxc3 {[%clk 0:02:11.1]} 16. bxc3 {[%clk 0:02:38]}
16... Rc8 {[%clk 0:02:09.2]} 17. Rd3 {[%clk 0:02:25]} 17... Qb5+ {[%clk
0:01:59.1]} 18. Qb4 {[%clk 0:02:16.8]} 18... Qa6 {[%clk 0:01:49.5]} 19. f3
{[%clk 0:02:11.2]} 19... Rc4 {[%clk 0:01:39.8]} 20. Qb3 {[%clk 0:02:02.1]} 20...
Nd7 {[%clk 0:01:38.2]} 21. Rd4 {[%clk 0:02:02.1]} 21... Rc5 {[%clk 0:01:27.5]}
22. Rhd1 {[%clk 0:01:56.2]} 22... Nb6 {[%clk 0:01:23.9]} 23. Rb4 {[%clk
0:01:37]} 23... Qe2 {[%clk 0:01:13.4]} 24. Rc1 {[%clk 0:01:31]} 24... Qxg2
{[%clk 0:01:11.4]} 25. c4 {[%clk 0:01:30.9]} 25... Qxh2 {[%clk 0:01:07.4]} 26.
Rb5 {[%clk 0:01:24.1]} 26... Qe5 {[%clk 0:01:02.6]} 27. Rxc5 {[%clk 0:01:19.1]}
27... Qxc5 {[%clk 0:01:01.7]} 28. Qb5 {[%clk 0:01:17.9]} 28... Qxc4 {[%clk
0:00:58.4]} 29. Qxc4 {[%clk 0:01:17.6]} 29... Nxc4 {[%clk 0:00:58.2]} 30. Rd1
{[%clk 0:01:18]} 30... h5 {[%clk 0:00:49.8]} 31. c3 {[%clk 0:01:15.4]} 31... g5
{[%clk 0:00:43.3]} 32. Kc1 {[%clk 0:01:15]} 32... Kg6 {[%clk 0:00:43.3]} 33. Rg1
{[%clk 0:01:11.9]} 33... b5 {[%clk 0:00:37.2]} 34. Kc2 {[%clk 0:01:11.9]} 34...
a6 {[%clk 0:00:36.8]} 35. Kd3 {[%clk 0:01:11.9]} 35... Ne5+ {[%clk 0:00:36.4]}
36. Ke3 {[%clk 0:01:10.9]} 36... f5 {[%clk 0:00:34.8]} 37. exf5+ {[%clk
0:01:05]} 37... Kxf5 {[%clk 0:00:34.4]} 38. Rh1 {[%clk 0:01:03.3]} 38... h4
{[%clk 0:00:33.9]} 39. Ra1 {[%clk 0:00:59.7]} 39... Nc4+ {[%clk 0:00:24.3]} 40.
Ke2 {[%clk 0:00:58.2]} 40... Na3 {[%clk 0:00:21.3]} 41. Rd1 {[%clk 0:00:56.5]}
41... Ke5 {[%clk 0:00:20.4]} 42. Rg1 {[%clk 0:00:56]} 42... Kf5 {[%clk
0:00:17.9]} 43. Rd1 {[%clk 0:00:55.8]} 43... Nc4 {[%clk 0:00:12.6]} 44. Ra1
{[%clk 0:00:42.5]} 44... Nb6 {[%clk 0:00:12.7]} 45. Rg1 {[%clk 0:00:36.2]} 45...
e5 {[%clk 0:00:12.5]} 46. Rd1 {[%clk 0:00:35.6]} 46... d5 {[%clk 0:00:12.8]} 47.
Ke3 {[%clk 0:00:34.9]} 47... Nc4+ {[%clk 0:00:09.7]} 48. Kf2 {[%clk 0:00:34.5]}
48... Ke6 {[%clk 0:00:09]} 49. Rg1 {[%clk 0:00:34.3]} 49... Kf5 {[%clk
0:00:08.5]} 50. Rd1 {[%clk 0:00:34.3]} 50... Nb6 {[%clk 0:00:09.2]} 51. Ke3
{[%clk 0:00:33.8]} 51... Nc4+ {[%clk 0:00:05.1]} 52. Kf2 {[%clk 0:00:33.1]}
1/2-1/2

[Event "Early-Titled-Tuesday-Blitz-September-26-2023"]
[Site "Chess.com"]
[Date "2023.09.26"]
[Round "2"]
[White "newyorkmouse"]
[Black "HrvojeZagreb"]
[Result "1-0"]
[WhiteElo "2497"]
[BlackElo "2282"]
[TimeControl "180+1"]
[EndTime "8:17:47 PDT"]
[Termination "newyorkmouse won by checkmate"]

1. Nf3 {[%clk 0:03:00.9]} 1... d5 {[%clk 0:02:54.7]} 2. e3 {[%clk 0:02:44.7]}
2... c5 {[%clk 0:02:52.4]} 3. c4 {[%clk 0:02:43.3]} 3... e6 {[%clk 0:02:48.4]}
4. cxd5 {[%clk 0:02:35.8]} 4... exd5 {[%clk 0:02:49.3]} 5. d4 {[%clk 0:02:35.2]}
5... Nc6 {[%clk 0:02:47.3]} 6. g3 {[%clk 0:02:32.8]} 6... Nf6 {[%clk 0:02:40.5]}
7. Bg2 {[%clk 0:02:32]} 7... Bg4 {[%clk 0:02:39.6]} 8. O-O {[%clk 0:02:29.8]}
8... Qd7 {[%clk 0:02:39.9]} 9. Nc3 {[%clk 0:02:28.3]} 9... cxd4 {[%clk
0:02:25.8]} 10. exd4 {[%clk 0:02:19.3]} 10... Be7 {[%clk 0:02:25.5]} 11. Re1
{[%clk 0:02:15.8]} 11... O-O {[%clk 0:02:24.9]} 12. Bf4 {[%clk 0:02:13.2]} 12...
Rfe8 {[%clk 0:02:16.6]} 13. Qd2 {[%clk 0:02:06.2]} 13... Bb4 {[%clk 0:02:05.5]}
14. Ne5 {[%clk 0:01:53.4]} 14... Nxe5 {[%clk 0:01:32.4]} 15. dxe5 {[%clk
0:01:54.3]} 15... Ne4 {[%clk 0:01:09.8]} 16. Bxe4 {[%clk 0:01:53.6]} 16... dxe4
{[%clk 0:01:09.4]} 17. Qxd7 {[%clk 0:01:54.3]} 17... Bxd7 {[%clk 0:01:09.3]} 18.
Rxe4 {[%clk 0:01:54.3]} 18... Bxc3 {[%clk 0:01:07.6]} 19. bxc3 {[%clk
0:01:55.2]} 19... Rac8 {[%clk 0:01:01.6]} 20. Re3 {[%clk 0:01:46.2]} 20... h6
{[%clk 0:00:58.3]} 21. h4 {[%clk 0:01:43.2]} 21... Rc4 {[%clk 0:00:53.7]} 22.
Rd1 {[%clk 0:01:38.8]} 22... Be6 {[%clk 0:00:49.5]} 23. Rb1 {[%clk 0:01:31.4]}
23... b6 {[%clk 0:00:47.9]} 24. Rb4 {[%clk 0:01:20.5]} 24... Rd8 {[%clk
0:00:39.3]} 25. a4 {[%clk 0:01:03.4]} 25... Rd1+ {[%clk 0:00:37.1]} 26. Kh2
{[%clk 0:01:02.2]} 26... Bd5 {[%clk 0:00:23.5]} 27. f3 {[%clk 0:00:59.8]} 27...
Rd2+ {[%clk 0:00:20.8]} 28. Kg1 {[%clk 0:00:55.2]} 28... Rd1+ {[%clk 0:00:12.2]}
29. Kg2 {[%clk 0:00:49.7]} 29... Ra1 {[%clk 0:00:11.5]} 30. Rd3 {[%clk
0:00:44.5]} 30... Be6 {[%clk 0:00:07.3]} 31. Rd4 {[%clk 0:00:33.6]} 31... Rxc3
{[%clk 0:00:06.8]} 32. Rd2 {[%clk 0:00:23.4]} 32... Rca3 {[%clk 0:00:06.7]} 33.
Rbd4 {[%clk 0:00:16.7]} 33... Rxa4 {[%clk 0:00:06.6]} 34. Rd8+ {[%clk
0:00:17.4]} 34... Kh7 {[%clk 0:00:06.9]} 35. g4 {[%clk 0:00:17.8]} 35... R4a2
{[%clk 0:00:06.6]} 36. Kg3 {[%clk 0:00:16.6]} 36... Ra3 {[%clk 0:00:05.6]} 37.
Ra8 {[%clk 0:00:14.9]} 37... Rb3 {[%clk 0:00:05.2]} 38. Rdd8 {[%clk 0:00:14.1]}
38... f5 {[%clk 0:00:01.6]} 39. h5 {[%clk 0:00:09.5]} 39... fxg4 {[%clk
0:00:01.5]} 40. Rh8# {[%clk 0:00:08.4]} 1-0